[Event "Delancey UK Schools 2019 U14"]
[Site "Daventry"]
[Date "2019.09.24"]
[Round "1.1"]
[White "Ratnesan, Ranesh"]
[Black "Ismail, Mohammed Aayan"]
[Result "1-0"]
[ECO "E38"]
[WhiteElo "2180"]
[BlackElo "1583"]
[Annotator "ChessBase"]
[PlyCount "143"]
[EventDate "2019.09.24"]
[EventCountry "GBR"]
[SourceTitle "playchess.com"]
[Source "ChessBase"]
[SourceQuality "1"]
[TimeControl "40/5400+30:1800+30"]

1. d4 {[%emt 1:10:12]} Nf6 {[%emt 1:10:11]} 2. c4 {[%emt 0:00:27]} e6 {[%emt 0:00:22]} 3. Nc3 {[%emt 0:00:34]} Bb4 {[%emt 0:00:36]} 4. Qc2 {[%emt 0:00:27]} c5 {[%emt 0:01:06]} 5. dxc5 {[%emt 0:00:32]} Bxc5 {[%emt 0:01:43]} 6. Nf3 {[%emt 0:00:52]} h6 {[%emt 0:03:52]} 7. a3 {[%emt 0:00:37]} a5 {[%emt 0:00:25]} 8. Bf4 {[%emt 0:02:35]} Na6 {[%emt 0:04:41]} 9. e3 {[%emt 0:04:14]} Qe7 {[%emt 0:01:47]} 10. h3 {[%emt 0:01:16]} d6 {[%emt 0:00:39]} 11. Be2 {[%emt 0:03:21]} e5 {[%emt 0:00:35]} 12. Bh2 {[%emt 0:01:00]} Be6 {[%emt 0:01:31]} 13. O-O {[%emt 0:01:27]} O-O {[%emt 0:00:33]} 14. Rfd1 {[%emt 0:01:33]} Rfd8 {[%emt 0:00:27]} 15. Rac1 {[%emt 0:03:08]} Bd7 {[%emt 0:03:08]} 16. Nh4 {[%emt 0:01:50]} Bc6 {[%emt 0:03:04]} 17. Nf5 {[%emt 0:01:00]} Qf8 {[%emt 0:00:35]} 18. Bg3 {[%emt 0:00:51]} Nc7 {[%emt 0:01:58]} 19. Bh4 {[%emt 0:00:28]} Nce8 {[%emt 0:00:24]} 20. Nd5 {[%emt 0:02:02]} Bxd5 {[%emt 0:00:26]} 21. cxd5 {[%emt 0:00:23]} g6 {[%emt 0:00:40]} 22. Bxf6 {[%emt 0:00:28]} Nxf6 {[%emt 0:00:23]} 23. Ng3 {[%emt 0:00:21]} Rac8 {[%emt 0:01:16]} 24. Qa4 {[%emt 0:00:24]} Ra8 {[%emt 0:00:59]} 25. Bb5 {[%emt 0:00:33]} Qe7 {[%emt 0:00:29]} 26. Rc2 {[%emt 0:00:37]} h5 {[%emt 0:00:35]} 27. Ne2 {[%emt 0:00:47]} Bb6 {[%emt 0:00:31]} 28. Nc3 {[%emt 0:00:36]} Nd7 {[%emt 0:00:30]} 29. Bxd7 {[%emt 0:00:30]} Qxd7 {[%emt 0:00:24]} 30. Qh4 {[%emt 0:00:36]} f5 {[%emt 0:00:51]} 31. Rdc1 {[%emt 0:00:53]} Re8 {[%emt 0:00:25]} 32. Na4 {[%emt 0:00:41]} Bd8 {[%emt 0:00:34]} 33. Qg3 {[%emt 0:00:35]} Qxa4 {[%emt 0:00:30]} 34. Qxg6+ {[%emt 0:00:22]} Kh8 {[%emt 0:00:27]} 35. Qxh5+ {[%emt 0:00:23]} Kg7 {[%emt 0:00:23]} 36. Qf3 {[%emt 0:00:32]} Qd7 {[%emt 0:00:24]} 37. Rc4 {[%emt 0:00:48]} Rg8 {[%emt 0:00:44]} 38. Kh1 {[%emt 0:00:26]} Kf6 {[%emt 0:00:30]} 39. Rh4 {[%emt 0:00:34]} Rg6 {[%emt 0:00:23]} 40. Qh5 {[%emt 0:00:28]} Qg7 {[%emt 0:00:26]} 41. g4 {[%emt 0:30:27]} fxg4 {[%emt 0:30:40]} 42. hxg4 {[%emt 0:00:28]} Rg5 {[%emt 0:00:28]} 43. Qh6+ {[%emt 0:00:45]} Qxh6 {[%emt 0:00:24]} 44. Rxh6+ {[%emt 0:00:21]} Rg6 {[%emt 0:00:24]} 45. Rxg6+ {[%emt 0:00:24]} Kxg6 {[%emt 0:00:22]} 46. Kg2 {[%emt 0:00:21]} Bb6 {[%emt 0:00:37]} 47. Kg3 {[%emt 0:00:30]} Rh8 {[%emt 0:00:22]} 48. Rc3 {[%emt 0:00:23]} Rh7 {[%emt 0:00:56]} 49. f4 {[%emt 0:00:26]} exf4+ {[%emt 0:00:22]} 50. exf4 {[%emt 0:00:21]} Re7 {[%emt 0:00:23]} 51. Kf3 {[%emt 0:00:21]} Rc7 {[%emt 0:00:23]} 52. Rb3 {[%emt 0:00:31]} Ba7 {[%emt 0:00:21]} 53. Rb5 {[%emt 0:00:29]} b6 {[%emt 0:00:40]} 54. Rb3 {[%emt 0:00:21]} Rc5 {[%emt 0:00:25]} 55. Rd3 {[%emt 0:00:22]} Rc2 {[%emt 0:00:22]} 56. Re3 {[%emt 0:00:30]} Bb8 {[%emt 0:00:52]} 57. b3 {[%emt 0:00:50]} Kf6 {[%emt 0:00:43]} 58. Ke4 {[%emt 0:00:30]} Rc8 {[%emt 0:00:25]} 59. g5+ {[%emt 0:00:35]} Kg6 {[%emt 0:00:22]} 60. Rh3 {[%emt 0:00:21]} Re8+ {[%emt 0:00:24]} 61. Kf3 {[%emt 0:00:23]} Rf8 {[%emt 0:00:46]} 62. Kg4 {[%emt 0:00:30]} Kg7 {[%emt 0:00:31]} 63. Rc3 {[%emt 0:00:30]} Kg6 {[%emt 0:00:36]} 64. Rc6 {[%emt 0:00:22]} b5 {[%emt 0:00:22]} 65. Rb6 {[%emt 0:00:26]} a4 {[%emt 0:00:30]} 66. b4 {[%emt 0:00:31]} Ba7 {[%emt 0:00:31]} 67. Rxd6+ {[%emt 0:00:27]} Kg7 {[%emt 0:00:25]} 68. f5 {[%emt 0:00:31]} Rf7 {[%emt 0:00:31]} 69. g6 {[%emt 0:00:31]} Rc7 {[%emt 0:00:31]} 70. Re6 {[%emt 0:00:35]} Rd7 {[%emt 0:00:25]} 71. d6 {[%emt 0:00:25]} Bb8 {[%emt 0:00:25]} 72. Re7+ {[%emt 0:00:37]} 1-0

[Event "Delancey UK Schools 2019 U14"]
[Site "Daventry"]
[Date "2019.09.24"]
[Round "1.2"]
[White "Britnell, Jonathan"]
[Black "Balaji, Aaravamudhan"]
[Result "0-1"]
[ECO "C45"]
[WhiteElo "1650"]
[BlackElo "2086"]
[Annotator "NA"]
[PlyCount "102"]
[EventDate "2019.09.24"]
[EventCountry "GBR"]
[SourceTitle "playchess.com"]
[Source "ChessBase"]
[SourceQuality "1"]
[TimeControl "40/5400+30:1800+30"]

1. e4 e5 {[%emt 0:00:02]} 2. Nf3 {[%emt 1:10:33]} Nc6 {[%emt 1:10:29]} 3. d4 {[%emt 0:00:22]} exd4 {[%emt 0:00:21]} 4. Nxd4 {[%emt 0:00:21]} Nf6 {[%emt 0:00:21]} 5. Nxc6 {[%emt 0:00:22]} bxc6 {[%emt 0:00:21]} 6. e5 {[%emt 0:00:21]} Qe7 {[%emt 0:00:21]} 7. Qe2 {[%emt 0:00:22]} Nd5 {[%emt 0:00:22]} 8. c4 {[%emt 0:00:21]} Nb6 {[%emt 0:00:25]} 9. Nc3 {[%emt 0:00:21]} Qe6 {[%emt 0:00:21]} 10. Qe4 {[%emt 0:00:22]} g6 {[%emt 0:00:26]} 11. Bd3 {[%emt 0:01:48]} Bg7 {[%emt 0:00:23]} 12. f4 {[%emt 0:00:28]} O-O {[%emt 0:00:41]} 13. O-O {[%emt 0:00:33]} d6 {[%emt 0:02:05]} 14. c5 {[%emt 0:02:18]} Nd5 {[%emt 0:02:49]} 15. cxd6 {[%emt 0:02:10]} cxd6 {[%emt 0:01:11]} 16. exd6 {[%emt 0:07:33]} Nxc3 {[%emt 0:02:19]} 17. bxc3 {[%emt 0:01:12]} Bxc3 {[%emt 0:03:41]} 18. Rb1 {[%emt 0:00:46]} Qxd6 {[%emt 0:02:16]} 19. Qf3 {[%emt 0:00:31]} Be6 {[%emt 0:04:09]} 20. f5 {[%emt 0:04:22]} Bxa2 {[%emt 0:02:11]} 21. Rb7 {[%emt 0:02:06]} Rad8 {[%emt 0:01:06]} 22. Bc2 {[%emt 0:00:41]} Bd4+ {[%emt 0:01:56]} 23. Kh1 {[%emt 0:00:27]} Bc4 {[%emt 0:00:44]} 24. Re1 {[%emt 0:00:56]} Rfe8 {[%emt 0:00:43]} 25. Bd2 {[%emt 0:00:59]} Rxe1+ {[%emt 0:00:48]} 26. Bxe1 {[%emt 0:00:21]} Re8 {[%emt 0:00:41]} 27. Bg3 {[%emt 0:00:45]} Qd5 {[%emt 0:00:40]} 28. Qg4 {[%emt 0:01:14]} Be2 {[%emt 0:01:31]} 29. Qg5 {[%emt 0:01:06]} Bf1 {[%emt 0:00:35]} 30. Qd2 {[%emt 0:00:26]} Bb6 {[%emt 0:00:38]} 31. Qxd5 {[%emt 0:00:43]} cxd5 {[%emt 0:00:21]} 32. Bd1 {[%emt 0:00:37]} Bb5 {[%emt 0:00:33]} 33. fxg6 {[%emt 0:00:32]} hxg6 {[%emt 0:00:26]} 34. Rb8 {[%emt 0:00:33]} Rxb8 {[%emt 0:00:30]} 35. Bxb8 {[%emt 0:00:22]} a5 {[%emt 0:00:25]} 36. Bd6 {[%emt 0:00:24]} Kg7 {[%emt 0:00:31]} 37. h3 {[%emt 0:00:27]} Kf6 {[%emt 0:00:22]} 38. Kh2 {[%emt 0:00:06]} Ke6 39. Ba3 {[%emt 0:00:42]} d4 {[%emt 0:00:51]} 40. Bb3+ {[%emt 0:00:29]} Ke5 {[%emt 0:00:23]} 41. Bxf7 {[%emt 0:30:25]} Kf6 {[%emt 0:30:50]} 42. Bb3 {[%emt 0:01:05]} Be2 {[%emt 0:00:21]} 43. Bb2 {[%emt 0:00:21]} Kf5 {[%emt 0:00:42]} 44. Kg3 {[%emt 0:00:31]} d3 {[%emt 0:00:26]} 45. Bc1 {[%emt 0:00:26]} Ke4 {[%emt 0:00:30]} 46. h4 {[%emt 0:00:34]} Be3 {[%emt 0:00:30]} 47. Bd5+ {[%emt 0:00:38]} Kd4 {[%emt 0:00:31]} 48. Bxe3+ {[%emt 0:00:25]} Kxe3 {[%emt 0:00:22]} 49. Bb3 {[%emt 0:00:21]} d2 {[%emt 0:00:25]} 50. Kh3 {[%emt 0:00:54]} d1=Q {[%emt 0:00:30]} 51. Bxd1 {[%emt 0:00:29]} Bxd1 {[%emt 0:00:21]} 0-1

[Event "Delancey UK Schools 2019 U14"]
[Site "Daventry"]
[Date "2019.09.24"]
[Round "1.3"]
[White "Saidmurodov, Shahjahon"]
[Black "Woltery, Nicolai"]
[Result "1-0"]
[ECO "B23"]
[WhiteElo "1782"]
[BlackElo "1864"]
[Annotator "NA"]
[PlyCount "115"]
[EventDate "2019.09.24"]
[EventCountry "GBR"]
[SourceTitle "playchess.com"]
[Source "ChessBase"]
[SourceQuality "1"]
[TimeControl "40/5400+30:1800+30"]

1. e4 {[%emt 1:10:12]} c5 {[%emt 1:10:12]} 2. Nc3 {[%emt 0:00:22]} Nc6 {[%emt 0:00:25]} 3. d3 {[%emt 0:00:24]} g6 {[%emt 0:00:44]} 4. Be3 {[%emt 0:00:21]} d6 {[%emt 0:00:43]} 5. d4 {[%emt 0:00:26]} cxd4 {[%emt 0:01:15]} 6. Bxd4 {[%emt 0:00:21]} Nxd4 {[%emt 0:01:02]} 7. Qxd4 {[%emt 0:00:22]} Nf6 {[%emt 0:00:34]} 8. e5 {[%emt 0:00:24]} dxe5 {[%emt 0:01:34]} 9. Bb5+ {[%emt 0:00:29]} Bd7 {[%emt 0:00:24]} 10. Qxe5 {[%emt 0:00:43]} a6 {[%emt 0:01:26]} 11. Bxd7+ {[%emt 0:00:27]} Qxd7 {[%emt 0:00:23]} 12. Nf3 {[%emt 0:00:23]} Bg7 {[%emt 0:09:40]} 13. Rd1 {[%emt 0:00:34]} Qg4 {[%emt 0:02:41]} 14. O-O {[%emt 0:14:24]} O-O {[%emt 0:03:51]} 15. Qxe7 {[%emt 0:02:28]} Rfe8 {[%emt 0:01:43]} 16. Qc5 {[%emt 0:02:42]} Rac8 {[%emt 0:00:58]} 17. Qd4 {[%emt 0:00:35]} Qf5 {[%emt 0:00:31]} 18. Qd3 {[%emt 0:00:41]} Qa5 {[%emt 0:00:33]} 19. Rfe1 {[%emt 0:01:05]} Red8 {[%emt 0:00:21]} 20. Qe3 {[%emt 0:00:41]} b5 {[%emt 0:00:27]} 21. Rxd8+ {[%emt 0:00:26]} Rxd8 {[%emt 0:00:22]} 22. Qc5 {[%emt 0:00:47]} Bf8 {[%emt 0:00:44]} 23. Qg5 {[%emt 0:00:32]} Rd6 {[%emt 0:00:40]} 24. h3 {[%emt 0:00:53]} h6 {[%emt 0:00:24]} 25. Qe5 {[%emt 0:00:27]} Re6 {[%emt 0:00:24]} 26. Qd4 {[%emt 0:00:45]} Rxe1+ {[%emt 0:00:40]} 27. Nxe1 {[%emt 0:00:21]} Bg7 {[%emt 0:00:25]} 28. Nd3 {[%emt 0:00:41]} Qc7 {[%emt 0:00:34]} 29. Qc5 {[%emt 0:00:28]} Qxc5 {[%emt 0:00:37]} 30. Nxc5 {[%emt 0:00:22]} b4 {[%emt 0:00:25]} 31. N3a4 {[%emt 0:00:34]} a5 {[%emt 0:00:32]} 32. Nb3 {[%emt 0:00:22]} Ne4 {[%emt 0:00:31]} 33. Nxa5 {[%emt 0:00:24]} Bd4 {[%emt 0:00:24]} 34. Nc6 {[%emt 0:00:21]} Bxf2+ {[%emt 0:00:37]} 35. Kf1 {[%emt 0:00:21]} Bg3 {[%emt 0:00:33]} 36. Nxb4 {[%emt 0:00:24]} Bd6 {[%emt 0:00:26]} 37. Nd5 {[%emt 0:00:23]} Kf8 {[%emt 0:00:25]} 38. Nac3 {[%emt 0:00:21]} Nd2+ {[%emt 0:00:25]} 39. Ke2 {[%emt 0:00:21]} Nc4 {[%emt 0:00:22]} 40. Nd1 {[%emt 0:00:34]} Be5 {[%emt 0:00:33]} 41. a4 {[%emt 0:30:49]} Nxb2 {[%emt 0:30:44]} 42. Nxb2 {[%emt 0:00:22]} Bxb2 {[%emt 0:00:21]} 43. a5 {[%emt 0:00:21]} Bd4 {[%emt 0:00:26]} 44. Kd3 {[%emt 0:00:22]} Ba7 {[%emt 0:00:21]} 45. c4 {[%emt 0:00:34]} Ke8 {[%emt 0:00:47]} 46. Nc7+ {[%emt 0:00:29]} Kd7 {[%emt 0:00:23]} 47. Nb5 {[%emt 0:00:21]} Bc5 {[%emt 0:00:45]} 48. a6 {[%emt 0:00:24]} Kc6 {[%emt 0:00:27]} 49. Ke4 {[%emt 0:00:23]} Kb6 {[%emt 0:00:22]} 50. a7 {[%emt 0:00:21]} Kb7 {[%emt 0:00:21]} 51. Kd5 {[%emt 0:00:21]} Bxa7 {[%emt 0:00:23]} 52. Nxa7 {[%emt 0:00:21]} Kxa7 53. Kc6 f5 {[%emt 0:00:46]} 54. Kd7 {[%emt 0:00:50]} g5 {[%emt 0:00:26]} 55. c5 {[%emt 0:00:21]} h5 {[%emt 0:00:26]} 56. c6 {[%emt 0:00:22]} g4 {[%emt 0:00:22]} 57. c7 {[%emt 0:00:32]} f4 {[%emt 0:00:23]} 58. c8=Q {[%emt 0:00:25]} 1-0

[Event "Delancey UK Schools 2019 U14"]
[Site "Daventry"]
[Date "2019.09.24"]
[Round "1.4"]
[White "Dicen, Imogen"]
[Black "Yoon, Jacob D"]
[Result "1/2-1/2"]
[ECO "B40"]
[WhiteElo "1509"]
[BlackElo "2086"]
[Annotator "NA"]
[PlyCount "61"]
[EventDate "2019.09.24"]
[EventCountry "GBR"]
[SourceTitle "playchess.com"]
[Source "ChessBase"]
[SourceQuality "1"]
[TimeControl "40/5400+30:1800+30"]

1. e4 {[%emt 1:10:13]} c5 {[%emt 1:10:11]} 2. Nf3 {[%emt 0:00:25]} e6 {[%emt 0:00:22]} 3. Nc3 {[%emt 0:00:29]} a6 {[%emt 0:00:21]} 4. Be2 {[%emt 0:00:34]} Qc7 {[%emt 0:00:53]} 5. d3 {[%emt 0:01:05]} Nc6 {[%emt 0:00:47]} 6. Be3 {[%emt 0:00:33]} Nf6 {[%emt 0:01:07]} 7. Qd2 {[%emt 0:01:12]} d5 {[%emt 0:03:44]} 8. exd5 {[%emt 0:02:12]} exd5 {[%emt 0:00:36]} 9. d4 {[%emt 0:00:56]} cxd4 {[%emt 0:01:52]} 10. Nxd4 {[%emt 0:00:37]} Be6 {[%emt 0:01:55]} 11. Bf4 {[%emt 0:02:27]} Bd6 {[%emt 0:00:35]} 12. Bxd6 {[%emt 0:02:19]} Qxd6 {[%emt 0:01:35]} 13. Rd1 {[%emt 0:01:48]} O-O {[%emt 0:01:41]} 14. O-O {[%emt 0:01:05]} Rad8 {[%emt 0:03:16]} 15. Rfe1 {[%emt 0:01:19]} Ne5 {[%emt 0:01:20]} 16. f3 {[%emt 0:02:15]} b5 {[%emt 0:01:56]} 17. a3 {[%emt 0:01:15]} Nfd7 {[%emt 0:00:55]} 18. Kh1 {[%emt 0:01:06]} Nb6 {[%emt 0:00:34]} 19. Qc1 {[%emt 0:01:57]} Nbc4 {[%emt 0:01:13]} 20. Nb1 {[%emt 0:01:16]} Rfe8 {[%emt 0:01:05]} 21. b3 {[%emt 0:00:43]} Na5 {[%emt 0:00:37]} 22. Qb2 {[%emt 0:00:50]} Nac6 {[%emt 0:00:25]} 23. c3 {[%emt 0:01:00]} Nxd4 {[%emt 0:01:26]} 24. Rxd4 {[%emt 0:00:32]} Nc6 {[%emt 0:00:22]} 25. Rd2 {[%emt 0:00:50]} Qf4 {[%emt 0:00:34]} 26. Red1 {[%emt 0:00:57]} h5 {[%emt 0:00:55]} 27. Qc2 {[%emt 0:01:18]} d4 {[%emt 0:01:15]} 28. cxd4 {[%emt 0:01:05]} Rxd4 {[%emt 0:00:22]} 29. Qxc6 {[%emt 0:00:53]} Red8 {[%emt 0:00:31]} 30. Rxd4 {[%emt 0:00:33]} Rxd4 {[%emt 0:00:22]} 31. Qc1 {[%emt 0:00:35]} 1/2-1/2

[Event "Delancey UK Schools 2019 U14"]
[Site "Daventry"]
[Date "2019.09.24"]
[Round "1.5"]
[White "Sheikh, Anum"]
[Black "Sheikh, Samia Zannat"]
[Result "1/2-1/2"]
[ECO "B70"]
[WhiteElo "1755"]
[BlackElo "1512"]
[Annotator "NA"]
[PlyCount "109"]
[EventDate "2019.09.24"]
[EventCountry "GBR"]
[SourceTitle "playchess.com"]
[Source "ChessBase"]
[SourceQuality "1"]
[TimeControl "40/5400+30:1800+30"]

1. e4 {[%emt 1:10:11]} c5 {[%emt 1:10:11]} 2. Nf3 {[%emt 0:00:22]} g6 {[%emt 0:00:21]} 3. d4 {[%emt 0:00:22]} cxd4 {[%emt 0:00:21]} 4. Nxd4 {[%emt 0:00:22]} Nf6 {[%emt 0:00:22]} 5. Nc3 {[%emt 0:00:21]} d6 {[%emt 0:00:24]} 6. Be2 {[%emt 0:00:23]} Bg7 {[%emt 0:00:22]} 7. O-O {[%emt 0:00:22]} O-O {[%emt 0:00:22]} 8. Nb3 {[%emt 0:00:26]} Nc6 {[%emt 0:00:24]} 9. Bg5 {[%emt 0:00:23]} a6 {[%emt 0:00:25]} 10. a4 {[%emt 0:00:27]} Bd7 {[%emt 0:00:32]} 11. f4 {[%emt 0:00:37]} Qb6+ {[%emt 0:00:44]} 12. Kh1 {[%emt 0:00:22]} Nb4 {[%emt 0:00:56]} 13. e5 {[%emt 0:00:46]} Nh5 {[%emt 0:02:35]} 14. Bxe7 {[%emt 0:00:32]} Rfe8 {[%emt 0:00:36]} 15. Bxd6 {[%emt 0:00:23]} Rad8 {[%emt 0:00:49]} 16. g4 {[%emt 0:00:26]} Bc6+ {[%emt 0:00:37]} 17. Bf3 {[%emt 0:00:40]} Nxf4 {[%emt 0:00:38]} 18. a5 {[%emt 0:00:46]} Qa7 {[%emt 0:00:36]} 19. Bxc6 {[%emt 0:00:25]} Nxc6 {[%emt 0:00:46]} 20. Qf3 {[%emt 0:01:25]} Nxe5 {[%emt 0:01:37]} 21. Qxf4 {[%emt 0:01:09]} Rxd6 {[%emt 0:00:23]} 22. Ne4 {[%emt 0:00:31]} Rc6 {[%emt 0:01:21]} 23. c3 {[%emt 0:00:46]} Rce6 {[%emt 0:03:41]} 24. Nd4 {[%emt 0:00:28]} R6e7 {[%emt 0:00:25]} 25. g5 {[%emt 0:05:42]} Nd3 {[%emt 0:01:27]} 26. Nf6+ {[%emt 0:00:40]} Bxf6 {[%emt 0:00:26]} 27. Qxf6 {[%emt 0:00:30]} Nxb2 {[%emt 0:01:43]} 28. h4 {[%emt 0:00:24]} Qb8 {[%emt 0:01:21]} 29. h5 {[%emt 0:03:58]} Qe5 {[%emt 0:03:00]} 30. hxg6 {[%emt 0:02:39]} hxg6 {[%emt 0:00:58]} 31. Qxe5 {[%emt 0:00:55]} Rxe5 {[%emt 0:00:23]} 32. Rab1 {[%emt 0:00:24]} Nc4 {[%emt 0:01:17]} 33. Rxb7 {[%emt 0:00:23]} R5e7 {[%emt 0:00:37]} 34. Rxe7 {[%emt 0:02:51]} Rxe7 {[%emt 0:00:21]} 35. Rf6 {[%emt 0:01:01]} Re5 {[%emt 0:01:50]} 36. Rxa6 {[%emt 0:00:47]} Nxa5 {[%emt 0:00:23]} 37. Nf3 {[%emt 0:00:36]} Rf5 {[%emt 0:00:24]} 38. Kg2 {[%emt 0:00:24]} Nc4 {[%emt 0:00:24]} 39. Kg3 {[%emt 0:02:02]} Ne5 {[%emt 0:01:38]} 40. Nxe5 {[%emt 0:00:48]} Rxe5 {[%emt 0:00:22]} 41. Kf4 {[%emt 0:30:27]} Rc5 {[%emt 0:30:35]} 42. Ra3 {[%emt 0:00:26]} Kf8 {[%emt 0:00:41]} 43. Ra8+ {[%emt 0:00:25]} Ke7 {[%emt 0:00:35]} 44. Ra7+ {[%emt 0:00:23]} Ke6 {[%emt 0:00:54]} 45. Ra6+ {[%emt 0:01:02]} Ke7 {[%emt 0:00:59]} 46. Ra7+ {[%emt 0:00:22]} Kf8 {[%emt 0:00:35]} 47. Ra8+ {[%emt 0:00:22]} Kg7 {[%emt 0:00:21]} 48. Ra3 {[%emt 0:00:24]} Rf5+ {[%emt 0:00:22]} 49. Kg4 {[%emt 0:00:22]} Kf8 {[%emt 0:01:06]} 50. c4 {[%emt 0:00:35]} Ke7 {[%emt 0:00:24]} 51. Rf3 {[%emt 0:00:41]} Rc5 {[%emt 0:00:55]} 52. Rc3 {[%emt 0:00:31]} Kd6 {[%emt 0:00:32]} 53. Rd3+ {[%emt 0:01:09]} Ke5 {[%emt 0:00:27]} 54. Re3+ {[%emt 0:00:21]} Kd6 {[%emt 0:01:01]} 55. Rd3+ {[%emt 0:00:22]} 1/2-1/2

[Event "Delancey UK Schools 2019 U14"]
[Site "Daventry"]
[Date "2019.09.24"]
[Round "1.7"]
[White "Akeya-Price, Robert"]
[Black "Wang, Susie"]
[Result "1/2-1/2"]
[ECO "A77"]
[WhiteElo "1892"]
[BlackElo "1515"]
[Annotator "NA"]
[PlyCount "108"]
[EventDate "2019.09.24"]
[EventCountry "GBR"]
[SourceTitle "playchess.com"]
[Source "ChessBase"]
[SourceQuality "1"]
[TimeControl "40/5400+30:1800+30"]

1. d4 {[%emt 1:10:13]} Nf6 {[%emt 1:10:11]} 2. c4 {[%emt 0:00:24]} c5 {[%emt 0:00:22]} 3. d5 {[%emt 0:00:25]} e6 {[%emt 0:00:24]} 4. Nc3 {[%emt 0:00:25]} exd5 {[%emt 0:00:21]} 5. cxd5 {[%emt 0:00:22]} d6 {[%emt 0:00:22]} 6. e4 {[%emt 0:00:36]} g6 {[%emt 0:00:23]} 7. Nf3 {[%emt 0:00:31]} Bg7 {[%emt 0:00:23]} 8. Nd2 {[%emt 0:00:31]} a6 {[%emt 0:00:36]} 9. a4 {[%emt 0:00:23]} O-O {[%emt 0:00:28]} 10. Be2 {[%emt 0:00:24]} Re8 {[%emt 0:00:27]} 11. O-O {[%emt 0:00:30]} Nbd7 {[%emt 0:02:40]} 12. Qc2 {[%emt 0:01:03]} Qe7 {[%emt 0:02:34]} 13. f3 {[%emt 0:04:08]} Nh5 {[%emt 0:02:03]} 14. Nb3 {[%emt 0:02:50]} f5 {[%emt 0:03:34]} 15. g4 {[%emt 0:07:04]} fxg4 {[%emt 0:01:24]} 16. fxg4 {[%emt 0:00:22]} Nhf6 {[%emt 0:02:01]} 17. Bg5 {[%emt 0:02:10]} h6 {[%emt 0:00:59]} 18. Bf4 {[%emt 0:01:51]} g5 {[%emt 0:04:35]} 19. Bg3 {[%emt 0:00:53]} Nxe4 {[%emt 0:01:27]} 20. Nxe4 {[%emt 0:01:28]} Qxe4 {[%emt 0:00:42]} 21. Qxe4 {[%emt 0:01:57]} Rxe4 {[%emt 0:00:22]} 22. Bf3 {[%emt 0:01:38]} Re3 {[%emt 0:02:14]} 23. Nd2 {[%emt 0:00:54]} Bxb2 {[%emt 0:01:02]} 24. Nc4 {[%emt 0:00:41]} Rxf3 {[%emt 0:01:20]} 25. Nxb2 {[%emt 0:00:25]} Rxf1+ {[%emt 0:00:47]} 26. Rxf1 {[%emt 0:00:22]} Ne5 {[%emt 0:00:47]} 27. h3 {[%emt 0:00:30]} b5 {[%emt 0:00:16]} 28. axb5 {[%emt 0:00:27]} axb5 {[%emt 0:00:41]} 29. Bxe5 {[%emt 0:00:25]} dxe5 {[%emt 0:00:20]} 30. Nd3 {[%emt 0:00:26]} c4 {[%emt 0:00:30]} 31. Nxe5 {[%emt 0:00:23]} Bb7 {[%emt 0:00:46]} 32. d6 {[%emt 0:00:35]} Ra2 {[%emt 0:00:37]} 33. Rb1 {[%emt 0:00:35]} Rg2+ {[%emt 0:00:25]} 34. Kf1 {[%emt 0:00:22]} Rd2 {[%emt 0:00:43]} 35. Rxb5 {[%emt 0:00:43]} Bg2+ {[%emt 0:00:26]} 36. Ke1 {[%emt 0:00:22]} Rxd6 {[%emt 0:00:06]} 37. Nxc4 {[%emt 0:00:25]} Re6+ {[%emt 0:00:48]} 38. Kf2 {[%emt 0:00:23]} Bxh3 {[%emt 0:00:05]} 39. Rb8+ {[%emt 0:00:27]} Kf7 {[%emt 0:00:40]} 40. Ne3 {[%emt 0:00:23]} Re4 {[%emt 0:00:33]} 41. Rb7+ {[%emt 0:30:22]} Kg6 {[%emt 0:30:29]} 42. Rb6+ {[%emt 0:00:22]} Kg7 {[%emt 0:00:27]} 43. Rb7+ {[%emt 0:00:22]} Kf8 {[%emt 0:00:30]} 44. Rb8+ {[%emt 0:00:24]} Ke7 {[%emt 0:00:27]} 45. Rb7+ {[%emt 0:00:22]} Kd8 {[%emt 0:00:31]} 46. Kf3 {[%emt 0:01:04]} Re6 {[%emt 0:00:51]} 47. Rb8+ {[%emt 0:00:37]} Kc7 {[%emt 0:00:24]} 48. Rb5 {[%emt 0:00:27]} Rf6+ {[%emt 0:00:33]} 49. Kg3 {[%emt 0:00:34]} Kc6 {[%emt 0:00:35]} 50. Re5 {[%emt 0:00:49]} Bf1 {[%emt 0:00:32]} 51. Rf5 {[%emt 0:00:28]} Rxf5 {[%emt 0:00:24]} 52. Nxf5 {[%emt 0:00:23]} Bd3 {[%emt 0:00:27]} 53. Nxh6 {[%emt 0:00:23]} Kd5 {[%emt 0:00:36]} 54. Nf7 {[%emt 0:00:24]} Be2 {[%emt 0:00:29]} 1/2-1/2

[Event "Delancey UK Schools 2019 U14"]
[Site "Daventry"]
[Date "2019.09.24"]
[Round "1.8"]
[White "Korsinskij, Nikolas"]
[Black "Hosdurga, Chirag"]
[Result "0-1"]
[ECO "B33"]
[WhiteElo "1502"]
[BlackElo "1786"]
[Annotator "NA"]
[PlyCount "64"]
[EventDate "2019.09.24"]
[EventCountry "GBR"]
[SourceTitle "playchess.com"]
[Source "ChessBase"]
[SourceQuality "1"]
[TimeControl "40/5400+30:1800+30"]

1. e4 {[%emt 0:00:01]} c5 {[%emt 0:00:02]} 2. Nf3 {[%emt 1:10:49]} Nc6 {[%emt 1:10:40]} 3. d4 {[%emt 0:00:26]} cxd4 {[%emt 0:00:22]} 4. Nxd4 {[%emt 0:00:25]} Qb6 {[%emt 0:00:21]} 5. Nb3 {[%emt 0:01:01]} Nf6 {[%emt 0:00:23]} 6. Nc3 {[%emt 0:00:54]} e6 {[%emt 0:00:23]} 7. Be3 {[%emt 0:00:40]} Qc7 {[%emt 0:00:21]} 8. Nb5 {[%emt 0:02:47]} Qb8 {[%emt 0:00:26]} 9. Bc5 {[%emt 0:02:23]} Bxc5 {[%emt 0:06:05]} 10. Nxc5 {[%emt 0:00:28]} b6 {[%emt 0:02:10]} 11. Nd6+ {[%emt 0:02:00]} Ke7 {[%emt 0:00:22]} 12. e5 {[%emt 0:04:17]} bxc5 {[%emt 0:02:39]} 13. Nxc8+ {[%emt 0:01:55]} Rxc8 {[%emt 0:00:38]} 14. exf6+ {[%emt 0:00:41]} gxf6 {[%emt 0:00:21]} 15. b3 {[%emt 0:01:32]} Qe5+ {[%emt 0:00:42]} 16. Be2 {[%emt 0:00:47]} Nd4 {[%emt 0:00:21]} 17. Rc1 {[%emt 0:02:10]} c4 {[%emt 0:03:25]} 18. c3 {[%emt 0:01:17]} Nxe2 {[%emt 0:02:01]} 19. Qxe2 {[%emt 0:00:28]} cxb3 {[%emt 0:00:22]} 20. Qxe5 {[%emt 0:01:35]} fxe5 {[%emt 0:00:21]} 21. axb3 {[%emt 0:00:24]} Rab8 {[%emt 0:00:21]} 22. b4 {[%emt 0:00:48]} Rxb4 {[%emt 0:00:25]} 23. Kd2 {[%emt 0:00:23]} Rb2+ {[%emt 0:00:25]} 24. Ke3 {[%emt 0:00:21]} d5 {[%emt 0:00:33]} 25. Rhd1 {[%emt 0:00:36]} a5 {[%emt 0:00:28]} 26. Rd2 {[%emt 0:00:29]} Rb3 {[%emt 0:00:38]} 27. Kd3 {[%emt 0:00:26]} Rc4 {[%emt 0:00:46]} 28. Ra2 {[%emt 0:00:40]} a4 {[%emt 0:00:32]} 29. Kd2 {[%emt 0:00:35]} Kd6 {[%emt 0:00:33]} 30. Rca1 {[%emt 0:00:29]} Rbxc3 {[%emt 0:02:13]} 31. Rxa4 {[%emt 0:00:30]} Rc2+ {[%emt 0:00:23]} 32. Ke3 {[%emt 0:00:28]} R4c3# {[%emt 0:00:22]} 0-1